Workbook

Sheet informacion tecnica (hidden)
A1: BUSCARV | B1: O.D. | C1: Espesor | D1: I.D. | E1: Velocidad | F1: O.D. | G1: Espesor | H1: I.D.
A2: =MIN(IF(A3:A20<>0, A3:A20)) -> 110 | B2: mm | C2: mm | D2: mm | E2: m/s | F2: mm | G2: mm | H2: mm | I2: -
A3: =IF(AND(E3<2,E3>1),B3,0) -> 0 | B3: 20 | C3: - | D3: - | E3: - | F3: 76 | G3: 0.7 | H3: =+F3-2*G3 -> 74.6 | I3: TUBO GALVANIZADO HK 76 BAUER
A4: =IF(AND(E4<2,E4>1),B4,0) -> 0 | B4: 25 | C4: - | D4: - | E4: - | F4: 89 | G4: 0.7 | H4: 87.6 | I4: TUBO GALVANIZADO HK 89 BAUER
A5: 0 | B5: 32 | C5: 1.8 | D5: =+B5-2*C5 -> 28.4 | E5: =(MAX('SECTORIZACION '!$N$7:$N$21 )/3600)/(PI()/4*(D5/1000)^2) -> 16.88230209 | F5: 108 | G5: 0.85 | H5: 106.3 | I5: TUBO GALVANIZADO HK 108 BAUER
A6: 0 | B6: 40 | C6: 2.1 | D6: =+B6-2*C6 -> 35.8 | E6: =(MAX('SECTORIZACION '!$N$7:$N$21 )/3600)/(PI()/4*(D6/1000)^2) -> 10.62434816 | F6: 133 | G6: 1 | H6: 131 | I6: TUBO GALVANIZADO HK 133 BAUER
A7: 0 | B7: 50 | C7: 2.7 | D7: 44.6 | E7: =(MAX('SECTORIZACION '!$N$7:$N$21 )/3600)/(PI()/4*(D7/1000)^2) -> 6.845396839 | F7: 159 | G7: 1 | H7: 157 | I7: TUBO GALVANIZADO HK 159 BAUER
A8: 0 | B8: 63 | C8: 3.3 | D8: 56.4 | E8: =(MAX('SECTORIZACION '!$N$7:$N$21 )/3600)/(PI()/4*(D8/1000)^2) -> 4.280654134 | F8: 194 | G8: 1.1 | H8: 191.8 | I8: TUBO GALVANIZADO HK 194 BAUER
A9: 0 | B9: 75 | C9: 3.9 | D9: 67.2 | E9: =(MAX('SECTORIZACION '!$N$7:$N$21 )/3600)/(PI()/4*(D9/1000)^2) -> 3.015294956 | I9: PE100 Ø160 PN10 HDPE PIPE
A10: 0 | B10: 90 | C10: 4.7 | D10: 80.6 | E10: =(MAX('SECTORIZACION '!$N$7:$N$21 )/3600)/(PI()/4*(D10/1000)^2) -> 2.096033714 | I10: PE100 Ø140 PN10 HDPE PIPE
A11: 110 | B11: 110 | C11: 4.6 | D11: 100.8 | E11: =(MAX('SECTORIZACION '!$N$7:$N$21 )/3600)/(PI()/4*(D11/1000)^2) -> 1.340131092 | I11: PE100 Ø125 PN10 HDPE PIPE
A12: 125 | B12: 125 | C12: 5.2 | D12: 114.6 | E12: =(MAX('SECTORIZACION '!$N$7:$N$21 )/3600)/(PI()/4*(D12/1000)^2) -> 1.036809844 | I12: PE100 Ø110 PN10 HDPE PIPE
A13: 0 | B13: 140 | C13: 5.8 | D13: 128.4 | E13: =(MAX('SECTORIZACION '!$N$7:$N$21 )/3600)/(PI()/4*(D13/1000)^2) -> 0.8259206029
A14: 0 | B14: 160 | C14: 6.7 | D14: 146.6 | E14: =(MAX('SECTORIZACION '!$N$7:$N$21 )/3600)/(PI()/4*(D14/1000)^2) -> 0.6335784641
A15: 0 | B15: 180 | C15: 7.4 | D15: 165.2 | E15: =(MAX('SECTORIZACION '!$N$7:$N$21 )/3600)/(PI()/4*(D15/1000)^2) -> 0.4989399296
A16: 0 | B16: 200 | C16: 8.2 | D16: 183.6 | E16: =(MAX('SECTORIZACION '!$N$7:$N$21 )/3600)/(PI()/4*(D16/1000)^2) -> 0.4039457039
A17: 0 | B17: 250 | C17: 10.2 | D17: 229.6 | E17: =(MAX('SECTORIZACION '!$N$7:$N$21 )/3600)/(PI()/4*(D17/1000)^2) -> 0.2583001033
A18: 0 | B18: 315 | C18: 12.9 | D18: 289.2 | E18: =(MAX('SECTORIZACION '!$N$7:$N$21 )/3600)/(PI()/4*(D18/1000)^2) -> 0.1628065113
A19: 0 | B19: 355 | C19: 14.4 | D19: 326.2 | E19: =(MAX('SECTORIZACION '!$N$7:$N$21 )/3600)/(PI()/4*(D19/1000)^2) -> 0.1279677205
A20: =IF(AND(E20<2,E20>1),B20,0) -> 0 | B20: 400 | C20: 16.2 | D20: 367.6 | E20: =(MAX('SECTORIZACION '!$N$7:$N$21 )/3600)/(PI()/4*(D20/1000)^2) -> 0.100766771

Sheet SECTORIZACION
A2: Nombre Proyecto
A3: Matias Leon
A5: Nº | B5: CULTIVO | C5: Informacion | D5: AREA PROYECTO | E5: AREA SECTOR | F5: DISTRIBUCION PLANTAS | H5: LINEAS DE RIEGO | I5: ESPC. EMISOR | J5: DESC. EMISOR | K5: PRECIPITACION | L5: LAMINA A REPONER | M5: TIEMPO RIEGO | N5: CAUDAL | O5: CAUDAL | P5: Ø TUBERIA ESTIM. | Q5: CUBICACION | S5: PLANTAS | T5: Tiempo
A6: SECTORES | D6: HA | E6: HA | F6: M x M | I6: M | J6: L/H | K6: MM/H | L6: MM | M6: HR | N6: M3/H | O6: LPS | P6: MM | Q6: N° EMISORES | R6: M LINEA | T6: H
A7: 3 | B7: Frutilla | D7: 0.68 | E7: =IFERROR(D7/A7,"") -> 0.2266666667 | F7: 0.8 | G7: 0.3 | H7: 1 | I7: 0.2 | J7: 2.2 | K7: =IFERROR((G7/I7*J7*H7)/(F7*G7),"") -> 13.75 | L7: 5 | M7: =IFERROR((L7/K7)*A7,"") -> 1.090909091 | N7: =IFERROR(1*((E7*10000)/ ((F7/H7)*I7)*J7/1000),"") -> 31.16666667 | O7: =IFERROR(N7/3.6,"") -> 8.657407407 | P7: =IF(O7<>"",'informacion tecnica'!$A$2,"") -> 110 | Q7: =IFERROR((((E7/1)*10000)/(F7/H7*I7))*1,"") -> 14166.66667 | R7: =IFERROR((((E7/1)*10000)/(F7/H7*I7))*I7,"") -> 2833.333333 | S7: =IFERROR(((E7/1)*10000)/(F7*G7),"") -> 9444.444444 | T7: =IFERROR(M7,"") -> 1.090909091 | U7: =IFERROR(A7*Q7,"") -> 42500 | V7: =IFERROR(A7*R7,"") -> 8500 | W7: =IFERROR(A7*S7,"") -> 28333.33333
A8: 3 | B8: Frutilla | D8: 0.64 | E8: =IFERROR(D8/A8,"") -> 0.2133333333 | F8: 0.8 | G8: 0.3 | H8: 1 | I8: 0.2 | J8: 2.2 | K8: =IFERROR((G8/I8*J8*H8)/(F8*G8),"") -> 13.75 | L8: 5 | M8: =IFERROR((L8/K8)*A8,"") -> 1.090909091 | N8: =IFERROR(1*((E8*10000)/ ((F8/H8)*I8)*J8/1000),"") -> 29.33333333 | O8: =IFERROR(N8/3.6,"") -> 8.148148148 | P8: =IF(O8<>"",'informacion tecnica'!$A$2,"") -> 110 | Q8: =IFERROR((((E8/A8)*10000)/(F8/H8*I8))*1*1.02,"") -> 4533.333333 | R8: =IFERROR((((E8/A8)*10000)/(F8/H8*I8))*I8*1.02,"") -> 906.6666667 | S8: =IFERROR(((E8/1)*10000)/(F8*G8),"") -> 8888.888889 | T8: =IFERROR(M8,"") -> 1.090909091 | U8: =IFERROR(A8*Q8,"") -> 13600 | V8: =IFERROR(A8*R8,"") -> 2720 | W8: =IFERROR(A8*S8,"") -> 26666.66667
A9: 3 | B9: Frutilla | D9: 0.84 | E9: 0.28 | F9: 0.8 | G9: 0.3 | H9: 1 | I9: 0.2 | J9: 2.2 | K9: 13.75 | L9: 5 | M9: 1.090909091 | N9: 38.5 | O9: 10.69444444 | P9: =IF(O9<>"",'informacion tecnica'!$A$2,"") -> 110 | Q9: 5950 | R9: 1190 | S9: 11666.66667 | T9: 1.090909091 | U9: 17850 | V9: 3570 | W9: 35000
M10: =IFERROR(L10/K10,"") ->  | P10: =IF(O10<>"",'informacion tecnica'!$A$2,"") -> 
P11: =IF(O11<>"",'informacion tecnica'!$A$2,"") -> 
P12: =IF(O12<>"",'informacion tecnica'!$A$2,"") -> 
P13: =IF(O13<>"",'informacion tecnica'!$A$2,"") -> 
P14: =IF(O14<>"",'informacion tecnica'!$A$2,"") -> 
P15: =IF(O15<>"",'informacion tecnica'!$A$2,"") -> 
P16: =IF(O16<>"",'informacion tecnica'!$A$2,"") -> 
P17: =IF(O17<>"",'informacion tecnica'!$A$2,"") -> 
P18: =IF(O18<>"",'informacion tecnica'!$A$2,"") -> 
P19: =IF(O19<>"",'informacion tecnica'!$A$2,"") -> 
P20: =IF(O20<>"",'informacion tecnica'!$A$2,"") -> 
P21: =IF(O21<>"",'informacion tecnica'!$A$2,"") -> 
A22: =SUM(A7:A21) -> 9 | C22: TOTAL | D22: =_xlfn.AGGREGATE(9,6,D7:D21) -> 2.16 | E22: HA | L22: TOTAL | M22: =_xlfn.AGGREGATE(9,6,T7:T21) -> 3.272727273 | N22: HR-DIA | P22: TOTAL | Q22: =_xlfn.AGGREGATE(9,6,U7:U21) -> 73950 | R22: =_xlfn.AGGREGATE(9,6,V7:V21) -> 14790 | S22: =_xlfn.AGGREGATE(9,6,W7:W21) -> 90000
A23: NOTA: Esta planilla es para uso personal o profesional. Un adecuado criterio ingenieril debe primar siempre al momento de interpretar y/o aplicar los resultados obtenidos.
A25: Summary | F25: Pump
B26: Area | C26: Flow | F26: Caudal | G26: Presion | H26: Eficiencia | I26: Pot. Abs | J26: Pot. Max | K26: Pot. Motor | L26: Reserva de
A27: # | B27: HA | C27: M3/H | F27: M3/H | G27: M.C.A. | H27: 55%-85% | I27: KW | J27: HP | K27: HP comercial | L27: Potencia
A28: 1 | B28: 3.28 | C28: 80 | F28: 37 | G28: 39 | H28: 0.8 | I28: =IFERROR(0.736*((1000*F28/3600*G28)/(75*H28)),0) -> 4.916888889 | J28: =1.25*I28/0.745 -> 8.249813572 | K28: 7.5 | L28: =IFERROR((K28*0.745-I28)/I28,0) -> 0.1363893157
A29: 2 | B29: 3.28 | C29: 83.3 | F29: NOTA: Reserva de potencia Norma ISO 5199.
A30: 3 | B30: 3.04 | C30: 77.2
A31: 4 | B31: 2.56 | C31: 65
A32: 5 | B32: 2.56 | C32: 65
A33: 6 | B33: 0 | C33: 0
A34: 7 | B34: 0 | C34: 0
A35: 8 | B35: 0 | C35: 0
A36: 9 | B36: 0 | C36: 0
A37: 10 | B37: 0 | C37: 0
B39: =SUM(B28:B38) -> 14.72 | L39: Desarrollado por Boris Torres | Ingeniero Civil Agricola | Email btorres@sewingenieria.cl | Tel. Móvil +56 9 6594 1162

Sheet Tazas
A2: Nombre Proyecto | M2: Rotator® R2000WF/R2000LP
M3: MagicDrive
A5: ANTECEDENTES
A6: Aspersor | B6: Rotator® R2000WF/R2000LP | M6: R2000LP #14 GREEN GREEN MR40PSI
A7: Distribucion CUADRADA | B7: 15 | E7: M | M7: R2000LP #16 RED RED MR35PSI
A8: CONFIGURACION | B8: R2000WF #16 RED RED MR40PSI | M8: R2000LP #18 GOLD GOLD MR35PSI
A9: Caudal Aspersor | B9: =IF(B8="R2000LP #14 GREEN GREEN MR40PSI",517.84,IF(B8="R2000LP #16 RED RED MR35PSI",613.24,IF(B8="R2000LP #18 GOLD GOLD MR35PSI",781.31,IF(B8="R2000LP #16 RED RED MR40PSI",656.39,IF(B8="R2000WF #16 RED RED MR40PSI",656.39,IF(B8="R2000WF #18 GOLD GOLD MR40PSI",835.82,IF(B8="ROTOR AZUL 24° BOQUILLA ROJA 3.2MM MPR40PSI",651.93,IF(B8="ROTOR AZUL 24° BOQUILLA ROJA 3.2MM MPR35PSI",600.19)))))))) -> 656.39 | E9: LPH | M9: R2000LP #16 RED RED MR40PSI
A10: Radio Aspersor | B10: =IF(B8="R2000LP #14 GREEN GREEN MR40PSI",11,IF(B8="R2000LP #16 RED RED MR35PSI",10.36,IF(B8="R2000LP #18 GOLD GOLD MR35PSI",12.19,IF(B8="R2000LP #16 RED RED MR40PSI",10.36,IF(B8="R2000WF #16 RED RED MR40PSI",12.8,IF(B8="R2000WF #18 GOLD GOLD MR40PSI",12.8,IF(B8="ROTOR AZUL 24° BOQUILLA ROJA 3.2MM MPR40PSI",11.5,IF(B8="ROTOR AZUL 24° BOQUILLA ROJA 3.2MM MPR35PSI",11.5)))))))) -> 12.8 | E10: M | M10: R2000WF #16 RED RED MR40PSI
A11: Emisores | B11: =214+173+127 -> 514 | M11: R2000WF #18 GOLD GOLD MR40PSI
A12: SUPERFICIE | B12: =(B7*B7)/10000*6*2*B11 -> 138.78 | E12: HA | M12: ROTOR AZUL 24° BOQUILLA ROJA 3.2MM MPR40PSI
A13: CAUDAL | B13: =1.01*B11*B9/3600 -> 94.65508461 | E13: LPS | M13: ROTOR AZUL 24° BOQUILLA ROJA 3.2MM MPR35PSI
A14: CAUDAL | B14: =B13*3.6 -> 340.7583046 | E14: M3H
A16: NOTA: Se considera una Frecuencia de Riego 6 dias, y 2 posturas diarias.
A18: ANTECEDENTES AGRONOMICOS
A19: Lamina Bruta a Reponer | B19: 30 | E19: MM
A20: Precipitación | B20: =B9/(B7*B7) -> 2.917288889 | E20: MM/H
A21: Tiempo de Riego por Postura | B21: =B19/B20 -> 10.28352047 | E21: H/DIA
A22: Tiempo de riego diario total | B22: =2*B21 -> 20.56704094 | E22: H/DIA
B66: Desarrollado por Boris Torres | Ingeniero Civil Agricola | Email btorres@sewingenieria.cl | Tel. Móvil +56 9 6594 1162

Sheet Pivotes
A2: Nombre Proyecto
A5: ANTECEDENTES PIVOTE
A6: Equipo | B6: Eco Pivot | C6: Eco Pivot | D6: Pivot
A7: Longitud Estructural, m | B7: 222 | C7: 252 | D7: 280 | E7: 0 | F7: 0 | G7: 0
A8: Area Bajo la Estructura, Ha | B8: =((PI()*(B7)^2)/10000)*B12 -> 15.48302523 | C8: 19.95036999 | D8: 24.6300864 | E8: 0 | F8: 0 | G8: 0
A9: Area Adicional, Ha | B9: 0 | C9: 0 | D9: 0 | E9: 0 | F9: 0 | G9: 0
A10: Alcance Aspersor Final, m | B10: 0 | C10: 0 | D10: 26 | E10: 0 | F10: 0 | G10: 0
A11: Area Aspersor Final , Ha | B11: =(PI()*((B7+B10)^2 - B7^2))/10000 -> 0 | C11: 0 | D11: 4.786530567 | E11: 0 | F11: 0 | G11: 0
A12: Numero de Campo a Regar | B12: 1 | C12: 1 | D12: 1 | E12: 0 | F12: 0 | G12: 0
A13: Area Total Irrigada, Ha | B13: =(((PI()*(B7)^2)/10000)*B12 + (((PI()*(B7+B10)^2)/10000) - ((PI()*(B7)^2)/10000))*B12)+B9 -> 15.48302523 | C13: 19.95036999 | D13: 29.41661697 | E13: 0 | F13: 0 | G13: 0
A15: ANTECEDENTES AGRONOMICOS
A16: Lamina Bruta a Reponer, mm/dia | B16: 15 | C16: 15 | D16: 10 | E16: 0 | F16: 0 | G16: 0
A17: Tiempo de Riego , h/dia | B17: 24 | C17: 24 | D17: 24 | E17: 0 | F17: 0 | G17: 0
A18: Dias disponibles semana | B18: 7 | C18: 7 | D18: 0 | E18: 0 | F18: 0 | G18: 0
A19: Lamina Bruta a Reponer, mm/semana | B19: =B18*B16 -> 105 | C19: =7*C16 -> 105 | D19: =7*D16 -> 70 | E19: =7*E16 -> 0 | F19: =7*F16 -> 0 | G19: =7*G16 -> 0
A20: Capacidad de Aplicación Bruta, l/s | B20: =IFERROR(2.78*(B13*B16)/B17,0) -> 26.90175634 | C20: 34.66376785 | D20: 34.07424799 | E20: 0 | F20: 0 | G20: 0
A21: Capacidad de Aplicación Bruta, m^3/h | B21: =IFERROR(B20*3.6,0) -> 96.84632284 | C21: 124.7895643 | D21: 122.6672928 | E21: 0 | F21: 0 | G21: 0
A22: Capacidad de Aplicación Bruta, GPM (USA) | B22: =IFERROR(B21*4.402868,0) -> 426.4015757 | C22: 549.4319793 | D22: 540.087898 | E22: 0 | F22: 0 | G22: 0
A45: Desarrollado por Boris Torres | Ingeniero Civil Agricola | Email btorres@sewingenieria.cl | Tel. Móvil +56 9 6594 1162

Sheet Enrollador
A2: Nombre Proyecto
A3: Enrollador Modelo RAINSTAR T42 90-300
A5: ANTECEDENTES AGRONOMICO
A6: Lamina a Reponer, mm | B6: 25 | C6: (*)
A7: Frecuencia de Riego | B7: 6
A9: ANTECEDENTES ENROLLADOR
A10: Diametro Tubo | B10: 90
A11: Longitud PE-Pipe, m | B11: 300 | C11: (*)
A12: Boquilla, | B12: 26
A13: Presion boquilla, bar | B13: 4
A14: Alcance Aspersor, m | B14: 47 | C14: (*)
A15: Caudal Aspersor, m3/h | B15: 51.9 | C15: (*)
A16: Presion base Enrollador, bar | B16: 5.6
A17: Porcentaje de Traslape | B17: 0.85 | C17: (*)
A18: Ancho Banda regada por Aspersor, m | B18: =ROUND(B17*2*B14,0) -> 80
A19: Precipitacion, mm/h | B19: =IFERROR((B15*1000)/(PI()*((90/100*B14)^2)*220/360),"") -> 15.10833376
A20: Velocidad de avance del carro, m/h | B20: =IFERROR((B15*1000)/(B6*B18),"") -> 25.95
A21: Tiempo de recorrido por postura, h | B21: =IFERROR(B11/B20,"") -> 11.56069364
A22: Superficie regada por postura, HA | B22: =IFERROR(((B11+B18*0.5)*B18)/10000,"") -> 2.72
A23: (*) Obligatorio
A26: ANTECEDENTES OPERACIÓN
A27: N° Posturas Maximas | B27: =IFERROR(ROUNDDOWN((23*$B$7)/B21,0),"") -> 11
A28: Superficie Total, HA | B28: =IFERROR(B22*B27,"") -> 29.92
A53: Desarrollado por Boris Torres | Ingeniero Civil Agricola | Email btorres@sewingenieria.cl | Tel. Móvil +56 9 6594 1162

Sheet CALCULADORA
A2: Nombre Proyecto
A3: Actualizado
A5: Tramo | B5: Tubo | C5: Cota Inicial, m | D5: Cota Final, m | E5: Caudal, m3/h | F5: Longitud, m | G5: Velocidad, m/s | H5: Perdida Lineales, m.c.a. | I5: Presion de Servicio, m.c.a. | J5: Altura Manometrica, m.c.a.
A6: 1 | B6: PE100 Ø110 PN10 HDPE PIPE | C6: 0 | D6: 0 | E6: 155 | F6: 100 | G6: =IF(B6<>"-", (E6/3600)/(PI()/4*((IF(B6="TUBO GALVANIZADO HK 76 BAUER ",74.6,IF(B6="TUBO GALVANIZADO HK 89 BAUER ",87.6,IF(B6="TUBO GALVANIZADO HK 108 BAUER ",106.3,IF(B6="TUBO GALVANIZADO HK 133 BAUER ",131,IF(B6="TUBO GALVANIZADO HK 159 BAUER ",157,IF(B6="TUBO GALVANIZADO HK 194 BAUER ",191.8,IF(B6="PE100 Ø160 PN10 HDPE PIPE",141,IF(B6="PE100 Ø140 PN10 HDPE PIPE",123.4,IF(B6="PE100 Ø125 PN10 HDPE PIPE",110.2,IF(B6="PE100 Ø110 PN10 HDPE PIPE",96.8,0)))))))))))/1000)^2),0) -> 5.850440966 | H6: =IF(B6<>"-",(1.131*10^12*E6^1.852*125^-1.852*(IF(B6="TUBO GALVANIZADO HK 76 BAUER ",74.6,IF(B6="TUBO GALVANIZADO HK 89 BAUER ",87.6,IF(B6="TUBO GALVANIZADO HK 108 BAUER ",106.3,IF(B6="TUBO GALVANIZADO HK 133 BAUER ",131,IF(B6="TUBO GALVANIZADO HK 159 BAUER ",157,IF(B6="TUBO GALVANIZADO HK 194 BAUER ",191.8,IF(B6="PE100 Ø160 PN10 HDPE PIPE",141,IF(B6="PE100 Ø140 PN10 HDPE PIPE",140,IF(B6="PE100 Ø125 PN10 HDPE PIPE",123.4,IF(B6="PE100 Ø110 PN10 HDPE PIPE",96.8,0)))))))))))^-4.87)/1000*F6,0) -> 35.91423134 | I6: 10 | J6: =H6+(D6-C6)+I6 -> 45.91423134
B7: TUBO GALVANIZADO HK 108 BAUER | C7: 0 | D7: 0 | E7: 120 | F7: 0 | G7: =IF(B7<>"-", (E7/3600)/(PI()/4*((IF(B7="TUBO GALVANIZADO HK 76 BAUER ",74.6,IF(B7="TUBO GALVANIZADO HK 89 BAUER ",87.6,IF(B7="TUBO GALVANIZADO HK 108 BAUER ",106.3,IF(B7="TUBO GALVANIZADO HK 133 BAUER ",131,IF(B7="TUBO GALVANIZADO HK 159 BAUER ",157,IF(B7="TUBO GALVANIZADO HK 194 BAUER ",191.8,IF(B7="PE100 Ø160 PN10 HDPE PIPE",141,IF(B7="PE100 Ø140 PN10 HDPE PIPE",123.4,IF(B7="PE100 Ø125 PN10 HDPE PIPE",110.2,IF(B7="PE100 Ø110 PN10 HDPE PIPE",96.8,0)))))))))))/1000)^2),0) -> 3.755971903 | H7: =IF(B7<>"-",(1.131*10^12*E7^1.852*125^-1.852*(IF(B7="TUBO GALVANIZADO HK 76 BAUER ",74.6,IF(B7="TUBO GALVANIZADO HK 89 BAUER ",87.6,IF(B7="TUBO GALVANIZADO HK 108 BAUER ",106.3,IF(B7="TUBO GALVANIZADO HK 133 BAUER ",131,IF(B7="TUBO GALVANIZADO HK 159 BAUER ",157,IF(B7="TUBO GALVANIZADO HK 194 BAUER ",191.8,IF(B7="PE100 Ø160 PN10 HDPE PIPE",141,IF(B7="PE100 Ø140 PN10 HDPE PIPE",140,IF(B7="PE100 Ø125 PN10 HDPE PIPE",123.4,IF(B7="PE100 Ø110 PN10 HDPE PIPE",96.8,0)))))))))))^-4.87)/1000*F7,0) -> 0 | I7: 0 | J7: =H7+(D7-C7)+I7 -> 0
B8: PE100 Ø110 PN10 HDPE PIPE | C8: 0 | D8: 0 | E8: 120 | F8: 0 | G8: 4.529373651 | H8: 0 | I8: 0 | J8: =H8+(D8-C8)+I8 -> 0
B9: PE100 Ø110 PN10 HDPE PIPE | C9: 0 | D9: 0 | E9: 120 | F9: 0 | G9: 4.529373651 | H9: 0 | I9: 0 | J9: =H9+(D9-C9)+I9 -> 0
B10: PE100 Ø110 PN10 HDPE PIPE | C10: 0 | D10: 0 | E10: 120 | F10: 0 | G10: 4.529373651 | H10: 0 | I10: 0 | J10: =H10+(D10-C10)+I10 -> 0
B11: TOTAL | H11: =_xlfn.AGGREGATE(9,6,H6:H10) -> 35.91423134 | J11: =_xlfn.AGGREGATE(9,6,J6:J10) -> 45.91423134
